[Event "Titled Tuesday Blitz November 30 2021"]
[White "Ibarra Jerez, Jose Carlos"]
[Black "Madaminov, Mukhiddin"]
[WhiteFideId "2226332"]
[BlackFideId "14210703"]
[WhiteElo "2626"]
[BlackElo "1855"]
[Result "1-0"]
[Round "09"]
[TimeControl "180+1"]
[Date "2021.11.30"]
[WhiteClock "0:00:15"]
[BlackClock "0:00:08"]

1. d4 {[%clk 0:03:00]}  Nf6 {[%clk 0:03:00]} 2. Bf4 {[%clk 0:02:59]}  e6 {[%clk 0:03:00]} 3. e3 {[%clk 0:02:58]}  d5 {[%clk 0:03:01]} 4. Nd2 {[%clk 0:02:58]}  c5 {[%clk 0:03:02]} 5. c3 {[%clk 0:02:57]}  Nc6 {[%clk 0:03:02]} 6. Ngf3 {[%clk 0:02:57]}  Be7 {[%clk 0:03:03]} 7. Bd3 {[%clk 0:02:55]}  Nh5 {[%clk 0:03:03]} 8. Be5 {[%clk 0:02:52]}  Bd7 {[%clk 0:02:50]} 9. h4 {[%clk 0:02:25]}  Nf6 {[%clk 0:02:37]} 10. Bf4 {[%clk 0:02:20]}  h6 {[%clk 0:02:33]} 11. Ne5 {[%clk 0:02:19]}  Qb6 {[%clk 0:02:25]} 12. Rb1 {[%clk 0:02:17]}  Nxe5 {[%clk 0:02:12]} 13. dxe5 {[%clk 0:02:14]}  Nh7 {[%clk 0:02:08]} 14. Qg4 {[%clk 0:02:11]}  Bf8 {[%clk 0:01:50]} 15. c4 {[%clk 0:02:04]}  O-O-O {[%clk 0:01:47]} 16. O-O {[%clk 0:01:44]}  g5 {[%clk 0:01:36]} 17. Bg3 {[%clk 0:01:39]}  Be7 {[%clk 0:01:28]} 18. cxd5 {[%clk 0:01:34]}  exd5 {[%clk 0:01:18]} 19. Bf5 {[%clk 0:01:33]}  Bxf5 {[%clk 0:01:12]} 20. Qxf5+ {[%clk 0:01:31]}  Qe6 {[%clk 0:01:11]} 21. Qxe6+ {[%clk 0:01:05]}  fxe6 {[%clk 0:01:12]} 22. h5 {[%clk 0:01:05]}  Rhf8 {[%clk 0:01:00]} 23. Rbc1 {[%clk 0:01:04]}  b6 {[%clk 0:00:58]} 24. b4 {[%clk 0:01:03]}  Kb7 {[%clk 0:00:37]} 25. bxc5 {[%clk 0:01:03]}  Bxc5 {[%clk 0:00:35]} 26. Nb3 {[%clk 0:00:58]}  Rc8 {[%clk 0:00:36]} 27. Rcd1 {[%clk 0:00:52]}  a5 {[%clk 0:00:33]} 28. a4 {[%clk 0:00:50]}  Ka6 {[%clk 0:00:28]} 29. e4 {[%clk 0:00:44]}  Rfd8 {[%clk 0:00:07]} 30. exd5 {[%clk 0:00:43]}  Rxd5 {[%clk 0:00:07]} 31. Rxd5 {[%clk 0:00:43]}  exd5 {[%clk 0:00:08]} 32. Rd1 {[%clk 0:00:44]}  Rd8 {[%clk 0:00:07]} 33. Kh2 {[%clk 0:00:44]}  Nf8 {[%clk 0:00:05]} 34. Kh3 {[%clk 0:00:43]}  Ne6 {[%clk 0:00:06]} 35. Kg4 {[%clk 0:00:43]}  Bb4 {[%clk 0:00:05]} 36. Kf5 {[%clk 0:00:42]}  Nc5 {[%clk 0:00:05]} 37. Nd4 {[%clk 0:00:30]}  Bc3 {[%clk 0:00:05]} 38. Ne6 {[%clk 0:00:28]}  Nxe6 {[%clk 0:00:03]} 39. Kxe6 {[%clk 0:00:29]}  d4 {[%clk 0:00:03]} 40. Ke7 {[%clk 0:00:22]}  Rd5 {[%clk 0:00:03]} 41. e6 {[%clk 0:00:22]}  d3 {[%clk 0:00:03]} 42. Kf7 {[%clk 0:00:20]}  d2 {[%clk 0:00:02]} 43. e7 {[%clk 0:00:20]}  Rd7 {[%clk 0:00:01]} 44. Ke6 {[%clk 0:00:19]}  Rxe7+ {[%clk 0:00:02]} 45. Kxe7 {[%clk 0:00:20]}  b5 {[%clk 0:00:02]} 46. axb5+ {[%clk 0:00:20]}  Kxb5 {[%clk 0:00:03]} 47. f4 {[%clk 0:00:20]}  Kc4 {[%clk 0:00:03]} 48. fxg5 {[%clk 0:00:20]}  hxg5 {[%clk 0:00:04]} 49. h6 {[%clk 0:00:15]}  Kd3 {[%clk 0:00:03]} 50. Ke6 {[%clk 0:00:16]}  Kc2 {[%clk 0:00:02]} 51. Rh1 {[%clk 0:00:14]}  a4 {[%clk 0:00:02]} 52. Be5 {[%clk 0:00:14]}  Bxe5 {[%clk 0:00:01]} 53. Kxe5 {[%clk 0:00:13]}  d1=Q {[%clk 0:00:01]} 54. Rxd1 {[%clk 0:00:12]}  Kxd1 {[%clk 0:00:02]} 55. h7 {[%clk 0:00:13]}  a3 {[%clk 0:00:03]} 56. h8=Q {[%clk 0:00:13]}  a2 {[%clk 0:00:04]} 57. Kf5 {[%clk 0:00:14]}  Ke2 {[%clk 0:00:04]} 58. Qb2+ {[%clk 0:00:14]}  Kf1 {[%clk 0:00:05]} 59. Qxa2 {[%clk 0:00:14]}  Kg1 {[%clk 0:00:06]} 60. Kxg5 {[%clk 0:00:15]}  Kh2 {[%clk 0:00:07]} 61. g4+ {[%clk 0:00:15]}  Kh3 {[%clk 0:00:06]} 62. Qb3+ {[%clk 0:00:15]}  Kg2 {[%clk 0:00:07]} 63. Kf4 {[%clk 0:00:16]}  Kf2 {[%clk 0:00:08]} 64. Qb2+ {[%clk 0:00:15]} 1-0


[Site "https://www.chess.com"]

[Event "Titled Tuesday Blitz November 30 2021"]
[White "Kislov, Oleg"]
[Black "Preotu, Razvan"]
[WhiteFideId "13503774"]
[BlackFideId "2613280"]
[WhiteElo "2252"]
[BlackElo "2407"]
[Result "0-1"]
[Round "09"]
[TimeControl "180+1"]
[Date "2021.11.30"]
[WhiteClock "0:00:14"]
[BlackClock "0:00:16"]

1. d4 {[%clk 0:03:00]}  Nf6 {[%clk 0:02:59]} 2. Nc3 {[%clk 0:03:00]}  d5 {[%clk 0:02:59]} 3. Bg5 {[%clk 0:03:00]}  c6 {[%clk 0:02:54]} 4. Nf3 {[%clk 0:02:59]}  Qb6 {[%clk 0:02:52]} 5. Qd3 {[%clk 0:02:46]}  Qxb2 {[%clk 0:02:42]} 6. Rb1 {[%clk 0:02:46]}  Qa3 {[%clk 0:02:42]} 7. Bf4 {[%clk 0:02:31]}  Qa5 {[%clk 0:02:15]} 8. Bd2 {[%clk 0:02:26]}  Qa6 {[%clk 0:02:12]} 9. Qe3 {[%clk 0:02:19]}  Nbd7 {[%clk 0:01:49]} 10. Qf4 {[%clk 0:02:19]}  Qa3 {[%clk 0:01:38]} 11. Rb3 {[%clk 0:02:13]}  Qd6 {[%clk 0:01:37]} 12. Qh4 {[%clk 0:02:13]}  e5 {[%clk 0:01:28]} 13. dxe5 {[%clk 0:02:00]}  Nxe5 {[%clk 0:01:29]} 14. Bf4 {[%clk 0:01:49]}  Ng6 {[%clk 0:01:15]} 15. Bxd6 {[%clk 0:01:39]}  Nxh4 {[%clk 0:01:15]} 16. Bxf8 {[%clk 0:01:27]}  Nxf3+ {[%clk 0:01:15]} 17. gxf3 {[%clk 0:01:18]}  Kxf8 {[%clk 0:01:09]} 18. e3 {[%clk 0:01:16]}  g6 {[%clk 0:01:06]} 19. Bd3 {[%clk 0:01:14]}  Kg7 {[%clk 0:01:06]} 20. h4 {[%clk 0:01:14]}  Re8 {[%clk 0:01:04]} 21. Kd2 {[%clk 0:01:11]}  c5 {[%clk 0:00:58]} 22. Rbb1 {[%clk 0:01:04]}  Re7 {[%clk 0:00:39]} 23. Rbg1 {[%clk 0:01:01]}  h5 {[%clk 0:00:37]} 24. Rg5 {[%clk 0:01:00]}  Be6 {[%clk 0:00:37]} 25. Rhg1 {[%clk 0:00:57]}  Rd8 {[%clk 0:00:35]} 26. f4 {[%clk 0:00:47]}  c4 {[%clk 0:00:31]} 27. Be2 {[%clk 0:00:38]}  d4 {[%clk 0:00:31]} 28. exd4 {[%clk 0:00:36]}  Rxd4+ {[%clk 0:00:32]} 29. Kc1 {[%clk 0:00:36]}  Rxf4 {[%clk 0:00:31]} 30. Bxh5 {[%clk 0:00:35]}  Rxh4 {[%clk 0:00:24]} 31. Bd1 {[%clk 0:00:30]}  Rf4 {[%clk 0:00:18]} 32. R1g2 {[%clk 0:00:30]}  Bf5 {[%clk 0:00:17]} 33. Ne2 {[%clk 0:00:29]}  Rg4 {[%clk 0:00:16]} 34. R5xg4 {[%clk 0:00:26]}  Bxg4 {[%clk 0:00:17]} 35. Ng3 {[%clk 0:00:20]}  Re1 {[%clk 0:00:17]} 36. f3 {[%clk 0:00:14]}  Bxf3 {[%clk 0:00:17]} 37. Rd2 {[%clk 0:00:15]}  c3 {[%clk 0:00:18]} 38. Rd3 {[%clk 0:00:14]}  Bxd1 {[%clk 0:00:17]} 39. Rxd1 {[%clk 0:00:15]}  Rxd1+ {[%clk 0:00:18]} 40. Kxd1 {[%clk 0:00:15]}  Nd5 {[%clk 0:00:18]} 41. Ke2 {[%clk 0:00:16]}  f5 {[%clk 0:00:18]} 42. Kd3 {[%clk 0:00:16]}  Kf6 {[%clk 0:00:19]} 43. Kc4 {[%clk 0:00:16]}  Ke5 {[%clk 0:00:17]} 44. Ne2 {[%clk 0:00:16]}  g5 {[%clk 0:00:17]} 45. a4 {[%clk 0:00:16]}  f4 {[%clk 0:00:17]} 46. a5 {[%clk 0:00:16]}  f3 {[%clk 0:00:17]} 47. Ng3 {[%clk 0:00:15]}  g4 {[%clk 0:00:17]} 48. Kd3 {[%clk 0:00:14]}  Kf4 {[%clk 0:00:14]} 49. Nh5+ {[%clk 0:00:15]}  Kg5 {[%clk 0:00:15]} 50. Ng3 {[%clk 0:00:15]}  Kh4 {[%clk 0:00:15]} 51. Nf1 {[%clk 0:00:15]}  g3 {[%clk 0:00:15]} 52. Ke4 {[%clk 0:00:14]}  g2 {[%clk 0:00:16]} 0-1


[Site "https://www.chess.com"]

[Event "Titled Tuesday Blitz November 30 2021"]
[White "Kollars, Dmitrij"]
[Black "Iljiushenok, Ilia"]
[WhiteFideId "12909572"]
[BlackFideId "24105074"]
[WhiteElo "2584"]
[BlackElo "2578"]
[Result "1-0"]
[Round "09"]
[TimeControl "180+1"]
[Date "2021.11.30"]
[WhiteClock "0:00:15"]
[BlackClock "0:00:01"]

1. e4 {[%clk 0:03:00]}  c5 {[%clk 0:02:59]} 2. Nf3 {[%clk 0:03:00]}  d6 {[%clk 0:02:59]} 3. d4 {[%clk 0:03:00]}  cxd4 {[%clk 0:02:59]} 4. Nxd4 {[%clk 0:03:01]}  Nf6 {[%clk 0:02:59]} 5. Nc3 {[%clk 0:03:01]}  a6 {[%clk 0:03:00]} 6. Be3 {[%clk 0:03:00]}  e5 {[%clk 0:02:55]} 7. Nf3 {[%clk 0:03:00]}  Qc7 {[%clk 0:02:51]} 8. a4 {[%clk 0:03:00]}  Be7 {[%clk 0:02:49]} 9. Be2 {[%clk 0:03:00]}  O-O {[%clk 0:02:48]} 10. O-O {[%clk 0:03:00]}  h6 {[%clk 0:02:47]} 11. a5 {[%clk 0:02:54]}  Be6 {[%clk 0:02:43]} 12. Nd2 {[%clk 0:02:47]}  Nbd7 {[%clk 0:02:39]} 13. Re1 {[%clk 0:02:24]}  Rac8 {[%clk 0:02:38]} 14. h3 {[%clk 0:02:21]}  Rfd8 {[%clk 0:02:37]} 15. Bf3 {[%clk 0:02:20]}  Qc6 {[%clk 0:02:32]} 16. Qe2 {[%clk 0:02:10]}  d5 {[%clk 0:02:23]} 17. exd5 {[%clk 0:02:07]}  Nxd5 {[%clk 0:02:23]} 18. Nxd5 {[%clk 0:02:03]}  Bxd5 {[%clk 0:02:24]} 19. c3 {[%clk 0:01:30]}  f5 {[%clk 0:02:15]} 20. Bxd5+ {[%clk 0:01:14]}  Qxd5 {[%clk 0:02:15]} 21. Red1 {[%clk 0:01:15]}  Qc6 {[%clk 0:02:06]} 22. Nf3 {[%clk 0:00:53]}  Bf6 {[%clk 0:02:04]} 23. Rd2 {[%clk 0:00:41]}  f4 {[%clk 0:02:02]} 24. Ba7 {[%clk 0:00:41]}  e4 {[%clk 0:01:50]} 25. Nd4 {[%clk 0:00:39]}  Bxd4 {[%clk 0:01:49]} 26. Bxd4 {[%clk 0:00:38]}  f3 {[%clk 0:01:49]} 27. Qe3 {[%clk 0:00:28]}  Qg6 {[%clk 0:01:44]} 28. g3 {[%clk 0:00:28]}  Nf8 {[%clk 0:01:38]} 29. Re1 {[%clk 0:00:27]}  Re8 {[%clk 0:01:37]} 30. Qf4 {[%clk 0:00:24]}  Rc6 {[%clk 0:00:59]} 31. Be3 {[%clk 0:00:20]}  Qh5 {[%clk 0:00:49]} 32. Qg4 {[%clk 0:00:20]}  Qxa5 {[%clk 0:00:49]} 33. Red1 {[%clk 0:00:18]}  Rg6 {[%clk 0:00:45]} 34. Qf4 {[%clk 0:00:18]}  Qh5 {[%clk 0:00:43]} 35. Kh2 {[%clk 0:00:17]}  Kh7 {[%clk 0:00:37]} 36. Rd5 {[%clk 0:00:17]}  Rg5 {[%clk 0:00:33]} 37. Rxg5 {[%clk 0:00:18]}  Qxg5 {[%clk 0:00:28]} 38. Qxg5 {[%clk 0:00:19]}  hxg5 {[%clk 0:00:28]} 39. Bxg5 {[%clk 0:00:19]}  Kg6 {[%clk 0:00:18]} 40. Be3 {[%clk 0:00:20]}  Kf7 {[%clk 0:00:17]} 41. g4 {[%clk 0:00:19]}  Re5 {[%clk 0:00:16]} 42. Kg3 {[%clk 0:00:19]}  g5 {[%clk 0:00:17]} 43. h4 {[%clk 0:00:18]}  gxh4+ {[%clk 0:00:16]} 44. Kxh4 {[%clk 0:00:19]}  Rb5 {[%clk 0:00:16]} 45. b4 {[%clk 0:00:19]}  a5 {[%clk 0:00:16]} 46. Rd4 {[%clk 0:00:17]}  a4 {[%clk 0:00:14]} 47. Rd8 {[%clk 0:00:17]}  Re5 {[%clk 0:00:12]} 48. Ra8 {[%clk 0:00:17]}  b5 {[%clk 0:00:11]} 49. Kg3 {[%clk 0:00:16]}  Ne6 {[%clk 0:00:09]} 50. Ra7+ {[%clk 0:00:16]}  Kg6 {[%clk 0:00:09]} 51. Ra6 {[%clk 0:00:16]}  Kf7 {[%clk 0:00:09]} 52. Ra5 {[%clk 0:00:16]}  Rd5 {[%clk 0:00:06]} 53. c4 {[%clk 0:00:16]}  Rd3 {[%clk 0:00:05]} 54. cxb5 {[%clk 0:00:15]}  a3 {[%clk 0:00:06]} 55. b6 {[%clk 0:00:16]}  Nd8 {[%clk 0:00:06]} 56. Ra7+ {[%clk 0:00:15]}  Ke6 {[%clk 0:00:06]} 57. b7 {[%clk 0:00:15]}  Nxb7 {[%clk 0:00:03]} 58. Rxb7 {[%clk 0:00:16]}  Rb3 {[%clk 0:00:02]} 59. Ra7 {[%clk 0:00:16]}  Kd5 {[%clk 0:00:02]} 60. Kf4 {[%clk 0:00:15]}  Rxb4 {[%clk 0:00:01]} 61. Rxa3 {[%clk 0:00:15]}  Rb7 {[%clk 0:00:01]} 62. Ra5+ {[%clk 0:00:15]}  Kd6 {[%clk 0:00:01]} 63. Kxe4 {[%clk 0:00:15]} 1-0


[Site "https://www.chess.com"]

[Event "Titled Tuesday Blitz November 30 2021"]
[White "Kravtsiv, Martyn"]
[Black "Szpar, Milosz"]
[WhiteFideId "14113147"]
[BlackFideId "1184989"]
[WhiteElo "2660"]
[BlackElo "2285"]
[Result "0-1"]
[Round "09"]
[TimeControl "180+1"]
[Date "2021.11.30"]
[WhiteClock "0:00:02"]
[BlackClock "0:00:03"]

1. e4 {[%clk 0:03:00]}  c5 {[%clk 0:02:58]} 2. Nf3 {[%clk 0:02:59]}  d6 {[%clk 0:02:57]} 3. d4 {[%clk 0:02:58]}  cxd4 {[%clk 0:02:56]} 4. Nxd4 {[%clk 0:02:58]}  Nf6 {[%clk 0:02:56]} 5. f3 {[%clk 0:02:58]}  Nc6 {[%clk 0:02:54]} 6. c4 {[%clk 0:02:56]}  g6 {[%clk 0:02:47]} 7. Nc3 {[%clk 0:02:54]}  Bg7 {[%clk 0:02:46]} 8. Be3 {[%clk 0:02:54]}  O-O {[%clk 0:02:46]} 9. Qd2 {[%clk 0:02:54]}  Bd7 {[%clk 0:02:39]} 10. Be2 {[%clk 0:02:53]}  Nxd4 {[%clk 0:02:37]} 11. Bxd4 {[%clk 0:02:53]}  Qa5 {[%clk 0:02:31]} 12. O-O {[%clk 0:02:48]}  Bc6 {[%clk 0:02:16]} 13. Rfb1 {[%clk 0:02:19]}  Rfc8 {[%clk 0:02:05]} 14. b4 {[%clk 0:02:18]}  Qd8 {[%clk 0:02:04]} 15. a4 {[%clk 0:02:17]}  Nh5 {[%clk 0:01:58]} 16. a5 {[%clk 0:02:12]}  Bxd4+ {[%clk 0:01:51]} 17. Qxd4 {[%clk 0:02:11]}  Ng7 {[%clk 0:01:52]} 18. Qe3 {[%clk 0:02:01]}  Qe8 {[%clk 0:01:33]} 19. Rc1 {[%clk 0:01:56]}  Qf8 {[%clk 0:01:27]} 20. h3 {[%clk 0:01:49]}  Ne6 {[%clk 0:01:25]} 21. Nd5 {[%clk 0:01:44]}  g5 {[%clk 0:01:06]} 22. Bf1 {[%clk 0:01:42]}  Re8 {[%clk 0:01:00]} 23. Ra3 {[%clk 0:01:35]}  Qg7 {[%clk 0:00:57]} 24. Rd1 {[%clk 0:01:16]}  Kf8 {[%clk 0:00:56]} 25. Qf2 {[%clk 0:01:14]}  Rec8 {[%clk 0:00:42]} 26. Ne3 {[%clk 0:01:10]}  Nf4 {[%clk 0:00:31]} 27. Nf5 {[%clk 0:01:06]}  Qf6 {[%clk 0:00:31]} 28. Re3 {[%clk 0:00:45]}  Bd7 {[%clk 0:00:25]} 29. Nd4 {[%clk 0:00:45]}  h6 {[%clk 0:00:22]} 30. Qe1 {[%clk 0:00:44]}  Qe5 {[%clk 0:00:21]} 31. Nf5 {[%clk 0:00:29]}  b6 {[%clk 0:00:14]} 32. Nxh6 {[%clk 0:00:25]}  bxa5 {[%clk 0:00:13]} 33. bxa5 {[%clk 0:00:25]}  Rab8 {[%clk 0:00:12]} 34. Ng4 {[%clk 0:00:21]}  Bxg4 {[%clk 0:00:12]} 35. hxg4 {[%clk 0:00:21]}  Rb2 {[%clk 0:00:10]} 36. g3 {[%clk 0:00:20]}  Ne6 {[%clk 0:00:04]} 37. Rd5 {[%clk 0:00:17]}  Qh8 {[%clk 0:00:04]} 38. Re2 {[%clk 0:00:17]}  Rcb8 {[%clk 0:00:04]} 39. Qf2 {[%clk 0:00:13]}  Rb1 {[%clk 0:00:03]} 40. Kg2 {[%clk 0:00:11]}  Rc1 {[%clk 0:00:02]} 41. Rdd2 {[%clk 0:00:09]}  Rbb1 {[%clk 0:00:02]} 42. Qxa7 {[%clk 0:00:08]}  Rxf1 {[%clk 0:00:02]} 43. Qa8+ {[%clk 0:00:08]}  Kg7 {[%clk 0:00:02]} 44. Qxh8+ {[%clk 0:00:09]}  Kxh8 {[%clk 0:00:03]} 45. e5 {[%clk 0:00:09]}  Rg1+ {[%clk 0:00:04]} 46. Kf2 {[%clk 0:00:08]}  Rgf1+ {[%clk 0:00:04]} 47. Kg2 {[%clk 0:00:08]}  Rg1+ {[%clk 0:00:04]} 48. Kf2 {[%clk 0:00:08]}  Rgf1+ {[%clk 0:00:04]} 49. Ke3 {[%clk 0:00:08]}  dxe5 {[%clk 0:00:03]} 50. Ra2 {[%clk 0:00:08]}  Nc5 {[%clk 0:00:03]} 51. a6 {[%clk 0:00:08]}  Rb3+ {[%clk 0:00:03]} 52. Kd2 {[%clk 0:00:08]}  Rb8 {[%clk 0:00:02]} 53. a7 {[%clk 0:00:08]}  Ra8 {[%clk 0:00:03]} 54. Rxe5 {[%clk 0:00:08]}  Ne6 {[%clk 0:00:01]} 55. Ke3 {[%clk 0:00:05]}  Re1+ {[%clk 0:00:01]} 56. Re2 {[%clk 0:00:04]}  Rxe2+ {[%clk 0:00:02]} 57. Kxe2 {[%clk 0:00:04]}  Rxa7 {[%clk 0:00:03]} 58. f4 {[%clk 0:00:03]}  Ra2+ {[%clk 0:00:03]} 59. Kf3 {[%clk 0:00:02]}  Ra3+ {[%clk 0:00:04]} 60. Ke4 {[%clk 0:00:02]}  gxf4 {[%clk 0:00:04]} 61. gxf4 {[%clk 0:00:02]}  Ra4 {[%clk 0:00:05]} 62. f5 {[%clk 0:00:02]}  Rxc4+ {[%clk 0:00:05]} 63. Kd3 {[%clk 0:00:02]}  Rc5 {[%clk 0:00:03]} 0-1


[Site "https://www.chess.com"]

[Event "Titled Tuesday Blitz November 30 2021"]
[White "Le, Tuan Minh"]
[Black "Gasanov, Eldar"]
[WhiteFideId "12401153"]
[BlackFideId "14104466"]
[WhiteElo "2450"]
[BlackElo "2454"]
[Result "1-0"]
[Round "09"]
[TimeControl "180+1"]
[Date "2021.11.30"]
[WhiteClock "0:00:05"]
[BlackClock "0:00:04"]

1. d4 {[%clk 0:03:00]}  d6 {[%clk 0:02:49]} 2. e4 {[%clk 0:02:51]}  Nf6 {[%clk 0:02:47]} 3. Nc3 {[%clk 0:02:37]}  c6 {[%clk 0:02:47]} 4. Nf3 {[%clk 0:02:36]}  Bg4 {[%clk 0:02:45]} 5. h3 {[%clk 0:02:36]}  Bh5 {[%clk 0:02:45]} 6. Be2 {[%clk 0:02:25]}  e6 {[%clk 0:02:44]} 7. O-O {[%clk 0:02:25]}  d5 {[%clk 0:02:41]} 8. e5 {[%clk 0:02:22]}  Nfd7 {[%clk 0:02:41]} 9. Ne1 {[%clk 0:02:18]}  Bg6 {[%clk 0:02:38]} 10. f4 {[%clk 0:02:04]}  c5 {[%clk 0:02:38]} 11. Nf3 {[%clk 0:02:04]}  Nc6 {[%clk 0:02:38]} 12. Be3 {[%clk 0:02:04]}  Be4 {[%clk 0:02:24]} 13. Nxe4 {[%clk 0:01:09]}  dxe4 {[%clk 0:02:25]} 14. d5 {[%clk 0:01:10]}  exd5 {[%clk 0:01:52]} 15. Ng5 {[%clk 0:01:10]}  Nd4 {[%clk 0:01:15]} 16. Bg4 {[%clk 0:00:45]}  f5 {[%clk 0:00:37]} 17. Bxd4 {[%clk 0:00:12]}  fxg4 {[%clk 0:00:33]} 18. Qxg4 {[%clk 0:00:12]}  cxd4 {[%clk 0:00:30]} 19. Qe6+ {[%clk 0:00:13]}  Qe7 {[%clk 0:00:29]} 20. Qxd5 {[%clk 0:00:13]}  Nb6 {[%clk 0:00:24]} 21. Qxe4 {[%clk 0:00:12]}  O-O-O {[%clk 0:00:23]} 22. Rad1 {[%clk 0:00:13]}  Qc7 {[%clk 0:00:20]} 23. Kh1 {[%clk 0:00:13]}  Qc4 {[%clk 0:00:15]} 24. Qf5+ {[%clk 0:00:11]}  Rd7 {[%clk 0:00:12]} 25. e6 {[%clk 0:00:11]}  Rd5 {[%clk 0:00:09]} 26. e7+ {[%clk 0:00:04]}  Rxf5 {[%clk 0:00:08]} 27. e8=Q+ {[%clk 0:00:05]}  Kc7 {[%clk 0:00:08]} 28. Ne6+ {[%clk 0:00:06]}  Kd6 {[%clk 0:00:08]} 29. Rfe1 {[%clk 0:00:07]}  Qc6 {[%clk 0:00:05]} 30. Qb8+ {[%clk 0:00:04]}  Kd7 {[%clk 0:00:04]} 31. Qd8# {[%clk 0:00:05]} 1-0


[Site "https://www.chess.com"]

[Event "Titled Tuesday Blitz November 30 2021"]
[White "Mitrabha, Guha"]
[Black "Kovalev, Vladislav"]
[WhiteFideId "5057000"]
[BlackFideId "13504398"]
[WhiteElo "2334"]
[BlackElo "2573"]
[Result "1-0"]
[Round "09"]
[TimeControl "180+1"]
[Date "2021.11.30"]
[WhiteClock "0:00:16"]
[BlackClock "0:00:02"]

1. d4 {[%clk 0:03:00]}  Nf6 {[%clk 0:02:32]} 2. Bf4 {[%clk 0:02:58]}  g6 {[%clk 0:02:31]} 3. Nc3 {[%clk 0:02:57]}  d5 {[%clk 0:02:31]} 4. e3 {[%clk 0:02:56]}  Bg7 {[%clk 0:02:31]} 5. h4 {[%clk 0:02:57]}  h5 {[%clk 0:02:29]} 6. Nf3 {[%clk 0:02:57]}  c6 {[%clk 0:02:28]} 7. Qd2 {[%clk 0:02:56]}  Bg4 {[%clk 0:02:15]} 8. Ne5 {[%clk 0:02:56]}  Nbd7 {[%clk 0:02:15]} 9. Nxg4 {[%clk 0:02:53]}  Nxg4 {[%clk 0:02:15]} 10. f3 {[%clk 0:02:52]}  Ngf6 {[%clk 0:02:16]} 11. O-O-O {[%clk 0:02:51]}  Qa5 {[%clk 0:02:04]} 12. Kb1 {[%clk 0:02:49]}  Nb6 {[%clk 0:01:58]} 13. Bd3 {[%clk 0:02:41]}  O-O-O {[%clk 0:01:34]} 14. Be5 {[%clk 0:02:29]}  Rhg8 {[%clk 0:01:09]} 15. a3 {[%clk 0:02:23]}  Na4 {[%clk 0:01:04]} 16. Nxa4 {[%clk 0:01:16]}  Qxa4 {[%clk 0:01:05]} 17. Ka2 {[%clk 0:01:14]}  c5 {[%clk 0:00:53]} 18. dxc5 {[%clk 0:01:11]}  Nd7 {[%clk 0:00:17]} 19. Bxg7 {[%clk 0:01:09]}  Rxg7 {[%clk 0:00:17]} 20. Qc3 {[%clk 0:01:05]}  Rgg8 {[%clk 0:00:18]} 21. b4 {[%clk 0:01:04]}  Qc6 {[%clk 0:00:18]} 22. e4 {[%clk 0:01:02]}  Nf6 {[%clk 0:00:16]} 23. e5 {[%clk 0:00:49]}  Nd7 {[%clk 0:00:16]} 24. f4 {[%clk 0:00:48]}  e6 {[%clk 0:00:15]} 25. Qd4 {[%clk 0:00:46]}  b6 {[%clk 0:00:14]} 26. cxb6 {[%clk 0:00:42]}  Nxb6 {[%clk 0:00:15]} 27. Rc1 {[%clk 0:00:40]}  Kb7 {[%clk 0:00:15]} 28. b5 {[%clk 0:00:30]}  Qc7 {[%clk 0:00:15]} 29. a4 {[%clk 0:00:26]}  Rc8 {[%clk 0:00:15]} 30. Kb3 {[%clk 0:00:26]}  Qe7 {[%clk 0:00:09]} 31. Qb4 {[%clk 0:00:24]}  Qd7 {[%clk 0:00:07]} 32. Rhd1 {[%clk 0:00:22]}  Nc4 {[%clk 0:00:06]} 33. Ka2 {[%clk 0:00:18]}  Qe8 {[%clk 0:00:03]} 34. Rb1 {[%clk 0:00:18]}  Rc7 {[%clk 0:00:03]} 35. a5 {[%clk 0:00:17]}  Qc8 {[%clk 0:00:03]} 36. b6 {[%clk 0:00:17]}  axb6 {[%clk 0:00:02]} 37. Bxc4 {[%clk 0:00:17]}  Rxc4 {[%clk 0:00:03]} 38. Qxb6+ {[%clk 0:00:18]}  Ka8 {[%clk 0:00:03]} 39. Rb2 {[%clk 0:00:17]}  Ra4+ {[%clk 0:00:03]} 40. Kb1 {[%clk 0:00:17]}  Rd8 {[%clk 0:00:03]} 41. Rd3 {[%clk 0:00:16]}  Rd7 {[%clk 0:00:02]} 42. Rc3 {[%clk 0:00:16]} 1-0


[Site "https://www.chess.com"]

[Event "Titled Tuesday Blitz November 30 2021"]
[White "Nagy, Gabor"]
[Black "Piesik, Piotr"]
[WhiteFideId "737119"]
[BlackFideId "1136194"]
[WhiteElo "2534"]
[BlackElo "2336"]
[Result "1-0"]
[Round "09"]
[TimeControl "180+1"]
[Date "2021.11.30"]
[WhiteClock "0:00:17"]
[BlackClock "0:00:06"]

1. d4 {[%clk 0:03:00]}  c5 {[%clk 0:02:59]} 2. dxc5 {[%clk 0:03:00]}  e6 {[%clk 0:02:59]} 3. Nc3 {[%clk 0:02:59]}  Bxc5 {[%clk 0:02:59]} 4. Ne4 {[%clk 0:03:00]}  Nf6 {[%clk 0:03:00]} 5. Nxc5 {[%clk 0:03:00]}  Qa5+ {[%clk 0:03:00]} 6. Qd2 {[%clk 0:02:59]}  Qxc5 {[%clk 0:03:00]} 7. e3 {[%clk 0:02:58]}  d5 {[%clk 0:02:58]} 8. Nf3 {[%clk 0:02:57]}  Nc6 {[%clk 0:02:58]} 9. a3 {[%clk 0:02:55]}  a5 {[%clk 0:02:58]} 10. Be2 {[%clk 0:02:49]}  Ne4 {[%clk 0:02:56]} 11. Qd1 {[%clk 0:02:48]}  e5 {[%clk 0:02:51]} 12. O-O {[%clk 0:02:47]}  O-O {[%clk 0:02:50]} 13. Nd2 {[%clk 0:02:36]}  Bf5 {[%clk 0:02:48]} 14. c3 {[%clk 0:02:29]}  a4 {[%clk 0:02:43]} 15. Nxe4 {[%clk 0:02:23]}  dxe4 {[%clk 0:02:39]} 16. b4 {[%clk 0:02:10]}  axb3 {[%clk 0:02:38]} 17. Qxb3 {[%clk 0:02:10]}  Be6 {[%clk 0:02:31]} 18. Qb1 {[%clk 0:01:48]}  Bc4 {[%clk 0:02:28]} 19. Bxc4 {[%clk 0:01:40]}  Qxc4 {[%clk 0:02:28]} 20. Bd2 {[%clk 0:01:30]}  b5 {[%clk 0:02:26]} 21. Rd1 {[%clk 0:01:27]}  Rfd8 {[%clk 0:02:24]} 22. h3 {[%clk 0:01:25]}  Rd3 {[%clk 0:02:23]} 23. Be1 {[%clk 0:01:22]}  Rad8 {[%clk 0:02:18]} 24. Rc1 {[%clk 0:01:22]}  f5 {[%clk 0:02:14]} 25. a4 {[%clk 0:01:20]}  bxa4 {[%clk 0:02:14]} 26. Qb6 {[%clk 0:01:17]}  f4 {[%clk 0:01:52]} 27. Kh2 {[%clk 0:01:15]}  R3d7 {[%clk 0:01:30]} 28. exf4 {[%clk 0:00:58]}  exf4 {[%clk 0:01:29]} 29. Qb2 {[%clk 0:00:45]}  f3 {[%clk 0:01:22]} 30. Qa2 {[%clk 0:00:43]}  Qxa2 {[%clk 0:01:16]} 31. Rxa2 {[%clk 0:00:44]}  Rd1 {[%clk 0:01:15]} 32. Rxd1 {[%clk 0:00:42]}  Rxd1 {[%clk 0:01:15]} 33. Bd2 {[%clk 0:00:43]}  fxg2 {[%clk 0:01:09]} 34. Kxg2 {[%clk 0:00:44]}  Ne5 {[%clk 0:01:09]} 35. Be3 {[%clk 0:00:35]}  g5 {[%clk 0:00:37]} 36. Rxa4 {[%clk 0:00:32]}  h6 {[%clk 0:00:27]} 37. Rxe4 {[%clk 0:00:31]}  Nf7 {[%clk 0:00:20]} 38. Re6 {[%clk 0:00:25]}  Kg7 {[%clk 0:00:20]} 39. Bd4+ {[%clk 0:00:23]}  Kh7 {[%clk 0:00:19]} 40. Rf6 {[%clk 0:00:23]}  Nh8 {[%clk 0:00:16]} 41. Kf3 {[%clk 0:00:20]}  Rd3+ {[%clk 0:00:14]} 42. Ke4 {[%clk 0:00:19]}  Rxh3 {[%clk 0:00:14]} 43. c4 {[%clk 0:00:19]}  Rh4+ {[%clk 0:00:11]} 44. Kd5 {[%clk 0:00:19]}  Rh1 {[%clk 0:00:06]} 45. Rf8 {[%clk 0:00:17]} 1-0


[Site "https://www.chess.com"]